Cogmind - Beta 14 @@@ ROGUE MODE // 2024.11.01 @ 21:41:54 Player: Gabe+Kate4EVR Result: Smashed by cave-in Performance ------------- Evolutions (0) 0 Regions Visited (2) 400 Robots Destroyed (17) 85 Value Destroyed (618) 618 Prototype IDs (0) 0 Alien Tech Used (0) 0 Bonus (0) 0 TOTAL SCORE: 1103 Bonus ------- None Cogmind --------- Core Integrity 0/250 Matter 287/300 Energy 78/100 System Corruption 2% Temperature Cool (2) Movement Walking (260) Ox2 Location -10/Subcaves Parts ------- > --- POWER (1) -------- (None) > --- PROPULSION (2) --- Aluminum Leg > --- UTILITY (2) ------ Improved Heat Sink Large Storage Unit > --- WEAPON (2) ------- Small Laser Subdweller Machine Gun > --- INVENTORY (15) --- Ion Engine Ion Engine Aluminum Leg Aluminum Leg Aluminum Leg Aluminum Leg Wheel Compact Wheel Improved Heat Sink Small Storage Unit High-capacity Matter Pod (125) Core Shielding Propulsion Shielding Small Laser Particle Gun Peak State ------------ > --- POWER ------------ Light Nuclear Core > --- PROPULSION ------- Aluminum Leg Aluminum Leg > --- UTILITY ---------- Improved Heat Sink Large Storage Unit > --- WEAPON ----------- Small Laser Small Laser > --- INVENTORY -------- Ion Engine Ion Engine Aluminum Leg Aluminum Leg Aluminum Leg Aluminum Leg Wheel Compact Wheel Heat Sink Small Storage Unit High-capacity Matter Pod Core Shielding Propulsion Shielding Small Laser Small Laser [Rating: 12] Favorites ----------- Power Light Nuclear Core Engine Ion Engine Power Core Light Nuclear Core Propulsion Aluminum Leg Leg Aluminum Leg Utility Large Storage Unit Device Improved Heat Sink Storage Large Storage Unit Protection Propulsion Shielding Weapon Small Laser Energy Gun Small Laser Ballistic Gun Assault Rifle Build | -11 -10 -10 ------- Run | Yrd Mat Sub Slots Evolved . | . . . Power . | . . . Propulsion . | . . . Utility . | . . . Weapon . | . . . Parts Attached 31 | 7 23 1 Power 3 | 1 2 . Engine 2 | 1 1 . Core 1 | . 1 . Reactor . | . . . Propulsion 10 | 2 8 . Treads . | . . . Leg 10 | 2 8 . Wheel . | . . . Hover . | . . . Flight . | . . . Utility 7 | 1 6 . Device 4 | . 4 . Storage 2 | 1 1 . Processor . | . . . Hackware . | . . . Protection 1 | . 1 . Artifact . | . . . Weapon 11 | 3 7 1 Energy Gun 9 | 3 6 . Energy Cannon . | . . . Ballistic Gun 2 | . 1 1 Ballistic Cannon . | . . . Launcher . | . . . Special Weapon . | . . . Impact Weapon . | . . . Slashing Weapon . | . . . Piercing Weapon . | . . . Special Melee Weapon . | . . . Unidentified Prototypes . | . . . Parts Lost 2 | . . 2 Power 1 | . . 1 Propulsion 1 | . . 1 Utility . | . . . Weapon . | . . . Highest Loss Streak 2 | . . 2 To Critical Strikes . | . . . Average Slot Usage (%) 99 | . 99 97 Engine 5 | . 5 . Core 8 | . 8 11 Leg 28 | . 28 28 Device 13 | . 13 14 Storage 14 | . 14 14 Energy Gun 25 | . 26 14 Ballistic Gun 2 | . 1 14 Peak Build Rating 12 | 6 12 12 Average Rating 10 | 4 10 11 On Entrance 6 | . 6 12 Naked Turns . | . . . Heaviest Build 30 | 14 30 29 Greatest Support 20 | 20 20 20 Greatest Overweight (x) 1 | . 1 1 Average Overweight (x) . | . . 1 Largest Inventory Capacity 15 | 8 15 15 Average Capacity 14 | 6 14 15 Most Carried 15 | 3 15 15 Average Carried 12 | 1 13 15 Final Capacity 15 | 8 15 15 Final Carried 15 | 3 15 15 Class Distribution -------------------- 81% | Scavenger-Mutant 18% | Mutant Dominant Class ---------------- Scavenger-Mutant | -10/Materials Scavenger-Mutant | -10/Subcaves Resources | -11 -10 -10 ----------- Run | Yrd Mat Sub Matter Collected 660 | 145 480 35 Remotely . | . . . Salvage Created 715 | . 680 35 Parts 37 | . 30 7 Haulers Intercepted . | . . . Recyclers Shooed 1 | . 1 . Parts Field Recycled . | . . . Retrieved Matter . | . . . Parts Self-Destructed . | . . . Prevented . | . . . Kills | -11 -10 -10 ------- Run | Yrd Mat Sub Combat Hostiles Destroyed 16 | . 15 1 Guns 12 | . 11 1 Classes Destroyed 3 | . 2 1 Watcher 1 | . 1 . Grunt 15 | . 15 . Subdweller 1 | . . 1 Best Kill Streak 3 | . 3 1 Combat Bots Only 3 | . 3 1 Max Kills in Single Turn 1 | . 1 1 Gunslinging . | . . . Exploded . | . . . Melee . | . . . Uniques/NPCs Destroyed . | . . . Combat | -11 -10 -10 -------- Run | Yrd Mat Sub Hostile Shots Fired 86 | . 77 9 Missed 23 | . 20 3 Damage Taken 1085 | . 693 392 Core 277 | . 163 114 Absorbed by Shields . | . . . Redirected to Shielding 9 | . 9 . Core Remaining (%) 100 | 100 . . Volleys Fired 62 | . 56 6 Largest 2 | . 2 2 Hottest 100 | . 100 60 Shots Fired 124 | . 112 12 Gun 124 | . 112 12 Cannon . | . . . Launcher . | . . . Special . | . . . Kinetic 16 | . 10 6 Thermal 108 | . 102 6 Explosive . | . . . Electromagnetic . | . . . Robot Hit Streak 15 | . 15 15 Robot Miss Streak 4 | . 4 1 Penetration Max . | . . . Secondary Targets 1 | . 1 . Max Gunslinging Chain 1 | . 1 . Shots Hit Robots 89 | . 78 11 Core Hits 35 | . 32 3 Critical Kills . | . . . Critical Parts Destroyed . | . . . Critical Strikes 7 | . 7 . Burn 7 | . 7 . Melee Attacks . | . . . Impact . | . . . Slashing . | . . . Piercing . | . . . Sneak Attacks . | . . . Combat Hostiles . | . . . Follow-up Attacks . | . . . Damage Inflicted 1098 | . 970 128 Guns 1098 | . 970 128 Cannons . | . . . Explosions . | . . . Melee . | . . . Ramming . | . . . Kinetic 144 | . 82 62 Thermal 954 | . 888 66 Explosive . | . . . Electromagnetic . | . . . Impact . | . . . Slashing . | . . . Piercing . | . . . Highest Corruption . | . . . Average Corruption . | . . . Corruption Purged . | . . . Corruption Blocked . | . . . Overload Shots . | . . . Overflow Damage . | . . . Projectiles . | . . . Explosions . | . . . Melee . | . . . Knockbacks . | . . . Impact . | . . . Kinetic . | . . . Secondary . | . . . Self-Inflicted Damage . | . . . Shots . | . . . Rammed . | . . . Targets Rammed . | . . . Kicked . | . . . Crushed . | . . . Highest Temperature 303 | . 303 . Average Temperature 66 | . 66 . Received Heat Transfer 387 | . 387 . Effects 3 | . 3 . Energy Bleed 1 | . 1 . Interference 2 | . 2 . Siege Activations . | . . . Robots Corrupted . | . . . Combat Hostiles . | . . . Parts Fried . | . . . Impact Corruptions . | . . . Robots Melted 4 | . 4 . Combat Hostiles 4 | . 4 . Parts Melted 15 | . 15 . Heat Transferred 3070 | . 2920 150 Parts Sabotaged . | . . . Parts Stolen . | . . . Parts Stripped . | . . . Power Chain Reactions . | . . . Alert | -11 -10 -10 ------- Run | Yrd Mat Sub Peak Influence 202 | . 202 . Initial . | . . . Average 39 | . 41 . Maximum Alert Level 1 | . 1 . Low Security (%) 92 | 100 92 . Level 1 7 | . 7 . Level 2 . | . . . Level 3 . | . . . Level 4 . | . . . Level 5 . | . . . High Security . | . . . Max Security . | . . . Squads Dispatched 1 | . 1 . Investigation 1 | . 1 . Extermination . | . . . Reinforcement . | . . . Assault . | . . . Garrison . | . . . Intercept . | . . . Searches Triggered . | . . . Construction Impeded . | . . . Haulers Reinforced . | . . . Active Scanning Responses . | . . . Cargo Convoy Interrupts . | . . . Stealth | -11 -10 -10 --------- Run | Yrd Mat Sub Distress Signals 2 | . 2 . Communications Jammed . | . . . Distress Signals . | . . . Times Spotted 19 | . 18 1 Peak Tracking Total 5 | . 5 1 Tactical Retreats 2 | . 2 . Traps | -11 -10 -10 ------- Run | Yrd Mat Sub Traps Triggered 4 | . 1 3 Indirectly . | . . . Trap Hack Attempts . | . . . Triggered . | . . . Disarmed . | . . . Reprogrammed . | . . . Reused . | . . . Traps Extracted . | . . . Installed . | . . . Triggered . | . . . Machines | -11 -10 -10 ---------- Run | Yrd Mat Sub Machines Disabled . | . . . Max in Single Turn . | . . . Machines Repaired . | . . . Machines Dismantled . | . . . Machines Sabotaged . | . . . Overloaded Fab Kills . | . . . Hacking | -11 -10 -10 --------- Run | Yrd Mat Sub Machines Accessed 1 | . 1 . Terminals . | . . . Fabricators . | . . . Repair Stations . | . . . Recycling Units 1 | . 1 . Scanalyzers . | . . . Garrison Access . | . . . Total Hacks 1 | . 1 . Successful 1 | . 1 . Failed . | . . . Catastrophic . | . . . Database Lockouts . | . . . Manual . | . . . Terminals . | . . . Fabricators . | . . . Repair Stations . | . . . Recycling Units 1 | . 1 . Scanalyzers . | . . . Garrison Access . | . . . Terminal Hacks . | . . . Fabricator Hacks . | . . . Repair Station Hacks . | . . . Recycling Unit Hacks 1 | . 1 . Retrieve Components 1 | . 1 . Scanalyzer . | . . . Garrison Access Hacks . | . . . Unauthorized Hacks . | . . . Terminals . | . . . Fabricators . | . . . Repair Stations . | . . . Recycling Units . | . . . Scanalyzers . | . . . Garrison Access . | . . . Data Cores Recovered . | . . . Used . | . . . Hacking Detections . | . . . Full Trace Events . | . . . Feedback Events . | . . . Feedback Blocked . | . . . Robot Schematics Acquired . | . . . Robots Built . | . . . Authchips . | . . . Time . | . . . Total Robot Build Rating . | . . . Part Schematics Acquired . | . . . Parts Built . | . . . Authchips . | . . . Time . | . . . Total Part Build Rating . | . . . Parts Repaired . | . . . Time . | . . . Parts Recycled . | . . . Recycled Matter . | . . . Retrieved Matter . | . . . Retrieved Components 4 | . 4 . Parts Scanalyzed . | . . . Part Schematics Acquired . | . . . Parts Damaged . | . . . Bothacking | -11 -10 -10 ------------ Run | Yrd Mat Sub Used RIF Installer . | . . . Robots Hacked . | . . . Non-combat . | . . . Combat . | . . . Robot Hacks Applied . | . . . Relay Couplers Released . | . . . Fabnet Peak Effective % . | . . . Robots Rewired . | . . . Allies Hacked . | . . . Hacks Repelled . | . . . Allies | -11 -10 -10 -------- Run | Yrd Mat Sub Total Allies . | . . . Largest Group . | . . . Highest-Rated Group . | . . . Highest-Rated Ally . | . . . Total Orders . | . . . Ally Attacks . | . . . Total Damage . | . . . Kills . | . . . Allies Corrupted . | . . . Allies Melted . | . . . Intel | -11 -10 -10 ------- Run | Yrd Mat Sub Robot Analysis Total . | . . . Derelict Logs Recovered 1 | . . 1 Drone Launches . | . . . Drone Recoveries . | . . . Exploration | -11 -10 -10 ------------- Run | Yrd Mat Sub Turns Passed 1979 | 79 1736 164 Spaces Moved 641 | 57 509 75 Core 4 | 4 . . Treads . | . . . Legs 637 | 53 509 75 Wheels . | . . . Hover . | . . . Flight . | . . . Fastest Speed 50 | 50 120 190 Average Speed 178 | 115 184 190 Slowest Speed 190 | 120 190 190 Overloaded Moves . | . . . Propulsion Burnouts . | . . . Robots Hopped . | . . . Cave-ins Triggered 1 | . . 1 Exploration Rate (%) 31 | 5 82 7 Regions Visited 2 Branch Regions 1 Pre-discovered Areas . | . . . Known Exits Taken . | . . . Unknown Exits Taken 2 | 1 1 . Scrap Searched . | . . . Spaces Dug . | . . . Terrain Destroyed . | . . . Melee . | . . . Projectile . | . . . AOE . | . . . Terrain Rammed . | . . . Walls Destroyed . | . . . Machines Disabled . | . . . Actions | -11 -10 -10 --------- Run | Yrd Mat Sub Total 1354 | 67 1205 82 Wait 594 | 1 593 . Move 638 | 56 508 74 Hop . | . . . Pick Up 10 | 3 7 . Fast Attach 9 | 6 3 . Attach . | . . . Detach 1 | . 1 . Swap 22 | 1 20 1 Drop 18 | . 17 1 Fire 62 | . 56 6 Melee . | . . . Ram . | . . . Kick . | . . . Crush . | . . . Escape Stasis . | . . . Rewire . | . . . Trap . | . . . Miscellaneous . | . . . Route ------- -11/Scrapyard -10/Materials (discovered 3 exits: [*Mat] / [*Min] / [*Sub]) -10/Subcaves History --------- Turn | Location | Event 10 | -11/Scrapyard | Discovered new exit (range 15) 80 | -11/Scrapyard | Entered Materials 308 | -10/Materials | Build established: Mutant 644 | -10/Materials | Build established: Scavenger-Mutant 775 | -10/Materials | Discovered new exit (range 6) 1221 | -10/Materials | Discovered new exit (range 14) 1715 | -10/Materials | Core integrity fell below 50% 1804 | -10/Materials | Discovered new exit (range 7) 1816 | -10/Materials | Entered Subcaves 1820 | -10/Subcaves | Learned 8 Materials zone layouts 1894 | -10/Subcaves | Core integrity fell below 20% 1952 | -10/Subcaves | Ambushed by Subdweller buried in earth 1980 | -10/Subcaves | Crushed by falling debris 1980 | -10/Subcaves | Smashed by cave-in Last Messages --------------- Data stored: Materials zone layouts (x8). 01862_ Triggered Piercing Trap. 01862_ Spikes shoot up from the floor. 01862_ Critical hit (Impale). 01893_ Triggered Piercing Trap. 01893_ Spikes shoot up from the floor. 01893_ Critical hit (Impale). NL-H42(R) emerges from concealment. 01952_ Triggered Shrapnel Trap. 01952_ An expanding cloud of shrapnel blasts out in all directions. 01953_ YH-9R1(R): "ARGHSUB!" 01956_ Lgt. Nuclear Core destroyed. 01969_ YH-9R1(R) destroyed. 01972_ Acquired 35 matter. 01976_ Dropped Assault Rifle. 01979_ Subatomizers dissect the Sub. Optics. 01980_ The unstable cave ceiling collapses. 01980_ Crushed by falling debris. 01980_ Aluminum Leg destroyed. 01980_ System corrupted by crushing effect (+2). Map ----- +----------------------------------------------------+ | ?????????????????????????????????????????????????? | | ?????????????????????????????????????????????????? | | ?????????????????????????????????????????????????? | | ?????????????????????????????????????????????????? | | ?????????????????????????????????????????????????? | | ??####????????####???????????##??????????????????? | | ??# ####????## ##??##??? ####???????????????? | | ??# ###### ### ## #???????????????? | | ??## ??????????????? | | ???### ??????????????? | | ?????# # ## # ??????????????? | | ?????# ### ##???????????????????????????? | | ????###### ##?## #????????????????????????????? | | ????# ##?## ##### #??????????????????????????? | | ????# ##?# ### ###???????????????????????? | | ???## ### ### #???????????????????????? | | ???# ###### #???????????????????????? | | ???# ##?## ##??????????????????????? | | ???## ### #??????????????????????? | | ????# #??????????????????????? | | ??### ## #??????????????????????? | | ### ## ^ ###### "##?????????????????????? | | # ### ##????#; ""#?????????????????????? | | # ### ##?????#; & #??????????????????????? | | # #### #??????#; !&##??????????????????????? | | ## ### ##??????#; =;@#??????????????????????? | | ?# ##???????# &!&#??????????????????????? | | ?# #???????# ###??????????????????????? | | ?## ^ #???? ????????????????????????? | | ??##### #???## #???????????????????????? | | ??????## #????# ##???????????????????????? | | ???????# #????# ##????????????????????????? | | ???????# #????# ?????????????????????????? | | ??????? #????# ?????????????????????????? | | ??????? ????# ##?????????????????????????? | | ??????? ??? ^## ???????????????????????????? | | ??????? ?? ?## ???????????????????????????? | | ?????? # ??##???????????????????????????? | | ??????? ##?? ?????????????????????????????????? | | ???????? ###?????????????????????????????????????? | | ?????????????????????????????????????????????????? | | ?????????????????????????????????????????????????? | | ?????????????????????????????????????????????????? | | ?????????????????????????????????????????????????? | | ?????????????????????????????????????????????????? | | ?????????????????????????????????????????????????? | | ?????????????????????????????????????????????????? | | ?????????????????????????????????????????????????? | | ?????????????????????????????????????????????????? | | ?????????????????????????????????????????????????? | +----------------------------------------------------+ Best States ------------- Heat Dissipation 39 Energy Generation 14 Energy Capacity 250 Matter Stores 300 Matter Capacity 300 Sight Range 16 Terrain Scan Density 10 Propulsion Shielding 33 Evasion (%) 55 Item Schematics ----------------- None Robot Schematics ------------------ None Fabricated ------------ Nothing Alien Tech Used ----------------- None Achievements -------------- None Challenges ------------ None Game ------ Seed ArmoredBurstAxe Manual? 0 Play Time 00:07:04 Cumulative 201.9 hours Start 2024.11.01 @ 21:25:41 End 2024.11.01 @ 21:41:54 Sessions 1 Manual Loads 0 Difficulty Rogue Special Mode None Game No. 394 Rogue 394 Adventurer 0 Explorer 0 Win Type - Total 0 Types 0/0/0/0/0/0/0/0/0 Lore% 42 Gallery% 64 Achievement% 48 Wizard Run 0 Options --------- Layout 0 ASCII 0 Keyboard 1 Movement Numpad Keybinds 0 Fullscreen 2 Font 18/X11 Map View 76x50 Zoom Use 0% Tactical HUD 1 Map Filters NONE Filters NONE Steam 1 RUN: 018c381b-b60c-462b-9227-f01121992ace